fUSD/lending_fUSD_20260519
["ID","MTS","AMOUNT","RATE_DAILY","PERIOD"]
[422604490,1779144641000,-165.94,0.0002882,2]
[422604460,1779144641000,-351.17215,0.00028718,2]
[422604494,1779144641000,-165.86,0.0002882,2]
[422604464,1779144641000,-275.42,0.00028725,2]
[422604463,1779144641000,-1011.73,0.00028725,2]
[422604462,1779144641000,-271.64,0.00028725,2]
[422604468,1779144641000,-275.37,0.00028725,2]
[422604472,1779144641000,-275.42,0.00028756,7]
[422604471,1779144641000,-1011.73,0.00028756,7]
[422604470,1779144641000,-271.64,0.00028756,7]
[422604473,1779144641000,-165.86,0.00028756,7]
[422604474,1779144641000,-271.55,0.00028756,7]
[422604476,1779144641000,-275.37,0.00028756,7]
[422604469,1779144641000,-165.94,0.00028756,7]
[422604465,1779144641000,-165.86,0.00028725,2]
[422604477,1779144641000,-150.0,0.00028767,2]
[422604489,1779144641000,-300.0,0.000288,10]
[422604478,1779144641000,-404.0,0.00028767,14]
[422604486,1779144641000,-1011.53,0.00028788,30]
[422604485,1779144641000,-271.55,0.00028788,30]
[422604484,1779144641000,-165.86,0.00028788,30]
[422604488,1779144641000,-152.0,0.00028794,30]
[422604483,1779144641000,-275.42,0.00028788,30]
[422604479,1779144641000,-173.0,0.00028767,14]
[422604480,1779144641000,-165.94,0.00028788,30]
[422604481,1779144641000,-271.64,0.00028788,30]
[422604475,1779144641000,-1011.53,0.00028756,7]
[422604482,1779144641000,-1011.73,0.00028788,30]
[422604487,1779144641000,-275.37,0.00028788,30]
[422604545,1779144642000,-830.0886209,0.00028947,7]
[422604549,1779144642000,-165.94,0.00028979,30]
[422604552,1779144642000,-275.42,0.00028979,30]
[422604551,1779144642000,-1011.73,0.00028979,30]
[422604555,1779144642000,-1011.53,0.00028979,30]
[422604550,1779144642000,-271.64,0.00028979,30]
[422604562,1779144642000,-165.94,0.0002901,2]
[422604553,1779144642000,-165.86,0.00028979,30]
[422604563,1779144642000,-271.64,0.0002901,2]
[422604557,1779144642000,-509.77361391,0.00029,2]
[422604554,1779144642000,-271.55,0.00028979,30]
[422604560,1779144642000,-150.0,0.00029,30]
[422604558,1779144642000,-208.5339928,0.00029,30]
[422604556,1779144642000,-275.37,0.00028979,30]
[422604559,1779144642000,-150.0,0.00029,30]
[422604572,1779144642000,-271.64,0.00029042,7]
[422604565,1779144642000,-275.42,0.0002901,2]
[422604574,1779144642000,-275.42,0.00029042,7]
[422604569,1779144642000,-275.37,0.0002901,2]
[422604548,1779144642000,-207.0,0.00028979,2]
[422604567,1779144642000,-271.55,0.0002901,2]
[422604561,1779144642000,-237.0,0.00029,30]
[422604547,1779144642000,-240.0,0.00028979,2]
[422604527,1779144642000,-1011.53,0.00028883,30]
[422604544,1779144642000,-181.4413791,0.00028947,7]
[422604564,1779144642000,-1011.73,0.0002901,2]
[422604524,1779144642000,-275.42,0.00028883,30]
[422604521,1779144642000,-165.94,0.00028883,30]
[422604522,1779144642000,-271.64,0.00028883,30]
[422604523,1779144642000,-1011.73,0.00028883,30]
[422604530,1779144642000,-271.64,0.00028915,2]
[422604533,1779144642000,-165.86,0.00028915,2]
[422604525,1779144642000,-165.86,0.00028883,30]
[422604536,1779144642000,-275.37,0.00028915,2]
[422604531,1779144642000,-1011.73,0.00028915,2]
[422604529,1779144642000,-165.94,0.00028915,2]
[422604526,1779144642000,-271.55,0.00028883,30]
[422604534,1779144642000,-271.55,0.00028915,2]
[422604532,1779144642000,-275.42,0.00028915,2]
[422604535,1779144642000,-1011.53,0.00028915,2]
[422604528,1779144642000,-275.37,0.00028883,30]
[422604537,1779144642000,-1586.0,0.00028916,3]
[422604538,1779144642000,-165.94,0.00028947,7]
[422604539,1779144642000,-271.64,0.00028947,7]
[422604540,1779144642000,-1011.73,0.00028947,7]
[422604542,1779144642000,-165.86,0.00028947,7]
[422604541,1779144642000,-275.42,0.00028947,7]
[422604543,1779144642000,-271.55,0.00028947,7]
[422604546,1779144642000,-275.37,0.00028947,7]
[422604575,1779144642000,-165.86,0.00029042,7]
[422604580,1779144642000,-165.94,0.00029074,30]
[422604571,1779144642000,-165.94,0.00029042,7]
[422604601,1779144642000,-1011.53,0.00029105,2]
[422604597,1779144642000,-180.98163015,0.00029105,2]
[422604608,1779144642000,-165.86,0.00029137,7]
[422604616,1779144642000,-271.55,0.00029169,30]
[422604607,1779144642000,-268.00464382,0.00029137,7]
[422604617,1779144642000,-1011.53,0.00029169,30]
[422604614,1779144642000,-275.42,0.00029169,30]
[422604609,1779144642000,-271.55,0.00029137,7]
[422604618,1779144642000,-168.15013474,0.00029182,7]
[422604610,1779144642000,-1011.53,0.00029137,7]
[422604599,1779144642000,-165.86,0.00029105,2]
[422604566,1779144642000,-165.86,0.0002901,2]
[422604611,1779144642000,-165.94,0.00029169,30]
[422604613,1779144642000,-1011.73,0.00029169,30]
[422604615,1779144642000,-165.86,0.00029169,30]
[422604620,1779144642000,-156.22142969,0.00029182,2]
[422604625,1779144642000,-1011.73,0.00029201,2]
[422604623,1779144642000,-103.06193985,0.00029201,2]
[422604621,1779144642000,-240.61,0.000292,7]
[422604622,1779144642000,-165.94,0.00029201,2]
[422604626,1779144642000,-275.42,0.00029201,2]
[422604624,1779144642000,-168.57806015,0.00029201,2]
[422604619,1779144642000,-275.4018519,0.00029182,7]
[422604600,1779144642000,-271.55,0.00029105,2]
[422604612,1779144642000,-271.64,0.00029169,30]
[422604603,1779144642000,-165.94,0.00029137,7]
[422604604,1779144642000,-271.64,0.00029137,7]
[422604570,1779144642000,-216.0,0.00029011,2]
[422604573,1779144642000,-1011.73,0.00029042,7]
[422604568,1779144642000,-1011.53,0.0002901,2]
[422604583,1779144642000,-275.42,0.00029074,30]
[422604592,1779144642000,-78.11160206,0.00029074,30]
[422604578,1779144642000,-503.0,0.00029048,4]
[422604593,1779144642000,-331.76,0.000291,7]
[422604582,1779144642000,-1011.73,0.00029074,30]
[422604589,1779144642000,-933.41839794,0.00029074,30]
[422604577,1779144642000,-1011.53,0.00029042,7]
[422604585,1779144642000,-165.86,0.00029074,30]
[422604579,1779144642000,-162.0,0.00029053,3]
[422604587,1779144642000,-271.55,0.00029074,30]
[422604581,1779144642000,-271.64,0.00029074,30]
[422604596,1779144642000,-830.74836985,0.00029105,2]
[422604594,1779144642000,-165.94,0.00029105,2]
[422604606,1779144642000,-7.41535618,0.00029137,7]
[422604598,1779144642000,-275.42,0.00029105,2]
[422604602,1779144642000,-200.0,0.0002913,7]
[422604595,1779144642000,-271.64,0.00029105,2]
[422604576,1779144642000,-271.55,0.00029042,7]
[422604605,1779144642000,-1011.73,0.00029137,7]
[422604643,1779144643000,-200.0,0.00029457,2]
[422604636,1779144643000,-1011.57,0.00029232,7]
[422604639,1779144643000,-350.0,0.00029341,5]
[422604644,1779144643000,-864.67,0.00029458,2]
[422604647,1779144643000,-203.75847026,0.0002953,20]
[422604645,1779144643000,-864.67,0.00029459,2]
[422604649,1779144643000,-163.0,0.00029631,3]
[422604652,1779144643000,-200.0,0.00029752,2]
[422604637,1779144643000,-200.0,0.0002933,20]
[422604648,1779144643000,-150.0,0.00029534,2]
[422604635,1779144643000,-271.58,0.00029232,7]
[422604627,1779144643000,-165.86,0.00029201,2]
[422604640,1779144643000,-200.82710935,0.0002945,2]
[422604632,1779144643000,-1011.92,0.00029232,7]
[422604633,1779144643000,-275.6,0.00029232,7]
[422604641,1779144643000,-864.67,0.00029457,2]
[422604634,1779144643000,-165.93,0.00029232,7]
[422604638,1779144643000,-2313.0,0.00029331,3]
[422604631,1779144643000,-271.77,0.00029232,7]
[422604629,1779144643000,-1011.53,0.00029201,2]
[422604630,1779144643000,-166.09,0.00029232,7]
[422604628,1779144643000,-271.55,0.00029201,2]
[422604651,1779144643000,-503.0,0.00029685,4]
[422604642,1779144643000,-864.67,0.00029457,2]
[422604655,1779144643000,-163.0,0.00029968,3]
[422604653,1779144643000,-80108.35267478,0.000299,2]
[422604656,1779144643000,-1586.0,0.00029971,3]
[422604677,1779144643000,-665.86939559,0.0003,7]
[422604676,1779144643000,-4225.15879888,0.0003,7]
[422604673,1779144643000,-66.6546242,0.00029232,7]
[422604675,1779144643000,-200.0,0.00020995,2]
[422604674,1779144643000,-297.3253758,0.0003,7]
[422604671,1779144643000,-275.37,0.00029201,2]
[422604672,1779144643000,-208.7753758,0.00029232,7]
[422604670,1779144643000,-275.37,0.00029169,30]
[422604669,1779144643000,-275.37,0.00029137,7]
[422604667,1779144643000,-275.37,0.00029074,30]
[422604668,1779144643000,-275.37,0.00029105,2]
[422604664,1779144643000,-950.93738016,0.00029995,2]
[422604654,1779144643000,-331.76,0.000299,7]
[422604665,1779144643000,-23.39938067,0.0003,7]
[422604678,1779144643000,-323.66,0.0003,7]
[422604646,1779144643000,-864.67,0.0002946,2]
[422604658,1779144643000,-240.85135763,0.0002999,2]
[422604657,1779144643000,-2313.0,0.00029971,3]
[422604650,1779144643000,-2313.0,0.0002967,3]
[422604661,1779144643000,-1619.05310382,0.00029995,2]
[422604660,1779144643000,-275.37,0.00029042,7]
[422604662,1779144643000,-380.21279882,0.00029995,2]
[422604663,1779144643000,-469.73578931,0.00029995,2]
[422604659,1779144643000,-212.06092789,0.00029995,2]
[422604666,1779144643000,-667.96197469,0.0003,7]
[422604684,1779144646000,-898.40695471,0.00028,2]
[422604681,1779144646000,-771.32,0.00028,2]
[422604682,1779144646000,-647.32,0.00028,2]
[422604683,1779144646000,-1180.95304529,0.00028,2]
[422604685,1779144646000,-271.52,0.0002863,2]
[422604686,1779144646000,-564.69255367,0.0002863,2]
[422604687,1779144646000,-447.58744633,0.0002863,2]
[422604688,1779144646000,-165.88,0.0002863,2]
[422604689,1779144646000,-1012.28,0.00028661,7]
[422604694,1779144646000,-165.88,0.00028693,30]
[422604691,1779144646000,-165.88,0.00028661,7]
[422604692,1779144646000,-271.52,0.00028693,30]
[422604690,1779144646000,-271.52,0.00028661,7]
[422604693,1779144646000,-1012.28,0.00028693,30]
[422604696,1779144647000,-562.08,0.00028725,2]
[422604695,1779144647000,-271.52,0.00028725,2]
[422604698,1779144661000,-1500.0,0.00027397,2]
[422604699,1779144666000,500.0,0.0002508,120]
[422604703,1779145001000,291.13757407,0.00027123,120]
[422604704,1779145011000,1189.3,0.00028515,120]
[422604705,1779145049000,188.77437179,0.00027937,120]
[422604707,1779145346000,296.0522951,0.00030129,120]
[422604706,1779145346000,500.0,0.00029999,120]
[422604708,1779145454000,348.803646,0.0002658,120]
[422604709,1779145484000,174.401823,0.00025872,120]
[422604711,1779145571000,152.0,8.332e-05,2]
[422604712,1779145600000,534.8114487,0.00029999,120]
[422604714,1779145700000,169.79,6.745e-05,2]
[422604716,1779145701000,169.79,9.337e-05,2]
[422604715,1779145701000,169.79,8.041e-05,2]
[422604719,1779145740000,1000.0,0.00030133,120]
[422604721,1779145744000,500.0,0.00030129,120]
[422604720,1779145744000,500.0,0.00029999,120]
[422604725,1779145745000,500.0,0.00030129,120]
[422604724,1779145745000,500.0,0.00030129,120]
[422604723,1779145745000,500.0,0.00030129,120]
[422604722,1779145745000,500.0,0.00030129,120]
[422604729,1779145763000,500.0,0.00030129,120]
[422604728,1779145763000,500.0,0.00030129,120]
[422604727,1779145763000,500.0,0.00030129,120]
[422604726,1779145763000,500.0,0.00029999,120]
[422604730,1779145764000,500.0,0.00030129,120]
[422604731,1779145764000,500.0,0.00030129,120]
[422604775,1779145832000,-164.93102534,0.00013488,2]
[422604781,1779145832000,-192.31,0.00013908,2]
[422604774,1779145832000,-195.19145224,0.00013488,2]
[422604773,1779145832000,-202.77329721,0.00013488,2]
[422604771,1779145832000,-150.0,0.00013488,2]
[422604770,1779145832000,-150.0,0.00013488,2]
[422604769,1779145832000,-158.3,0.00013335,2]
[422604766,1779145832000,-2000.0,0.00013172,2]
[422604768,1779145832000,-169.79,0.00013226,2]
[422604767,1779145832000,-9697.8,0.00013198,2]
[422604765,1779145832000,-1680.0,0.00013089,2]
[422604761,1779145832000,-9999.99,0.00012991,2]
[422604763,1779145832000,-9999.99,0.00012991,2]
[422604762,1779145832000,-9999.99,0.00012991,2]
[422604760,1779145832000,-250.0,0.00012991,2]
[422604752,1779145832000,-100.12654966,0.00011899,2]
[422604759,1779145832000,-344.62,0.00012495,2]
[422604772,1779145832000,-150.00000003,0.00013488,2]
[422604745,1779145832000,-169.79,0.00010633,2]
[422604746,1779145832000,-202.2664742,0.00011697,2]
[422604747,1779145832000,-250.0,0.00011697,2]
[422604748,1779145832000,-216.0,0.00011753,2]
[422604750,1779145832000,-240.08845334,0.00011899,2]
[422604764,1779145832000,-1553.76354504,0.00013,2]
[422604751,1779145832000,-859.784997,0.00011899,2]
[422604753,1779145832000,-892.98197899,0.000119,2]
[422604756,1779145832000,-163.42,0.00011929,2]
[422604755,1779145832000,-23930.13734796,0.000119,2]
[422604754,1779145832000,-402.11590291,0.000119,2]
[422604757,1779145832000,-169.79,0.00011929,2]
[422604758,1779145832000,-150.99,0.00012495,2]
[422604749,1779145832000,-192.99668422,0.0001177,2]
[422604780,1779145832000,-150.0,0.0001383,2]
[422604779,1779145832000,-295.08680176,0.0001383,2]
[422604782,1779145832000,-200.0,0.00013929,2]
[422604816,1779145832000,-385.40269315,0.00014999,2]
[422604822,1779145832000,-666.0,0.00014999,2]
[422604820,1779145832000,-300.0,0.00014999,2]
[422604823,1779145832000,-514816.62570508,0.00015,2]
[422604805,1779145832000,-47011.31484219,0.000149,2]
[422604777,1779145832000,-171.33146696,0.00013698,2]
[422604818,1779145832000,-300.0,0.00014999,2]
[422604808,1779145832000,-255.0,0.0001495,2]
[422604825,1779145832000,-68101.67197097,0.00015,2]
[422604813,1779145832000,-439.89621637,0.00014999,2]
[422604826,1779145832000,-52467.0041965,0.00015,2]
[422604828,1779145832000,-1951.87210122,0.00015,2]
[422604827,1779145832000,-17460.63780764,0.00015,2]
[422604829,1779145832000,-1016.35862345,0.00015,2]
[422604811,1779145832000,-199.25880783,0.00014999,2]
[422604801,1779145832000,-85085.51716661,0.000149,2]
[422604810,1779145832000,-500.0,0.00014999,2]
[422604791,1779145832000,-2000.0,0.00014818,2]
[422604803,1779145832000,-2133.5339992,0.000149,2]
[422604776,1779145832000,-1154.727,0.00013698,2]
[422604830,1779145832000,-1605.99198305,0.00015,2]
[422604778,1779145832000,-214.7115,0.00013731,2]
[422604783,1779145832000,-250.0,0.0001405,2]
[422604796,1779145832000,-5000.0,0.000149,2]
[422604786,1779145832000,-2351.0,0.00014398,2]
[422604788,1779145832000,-867.04431144,0.000148,2]
[422604787,1779145832000,-192.31,0.00014604,2]
[422604800,1779145832000,-719.25969978,0.000149,2]
[422604798,1779145832000,-9363.86951264,0.000149,2]
[422604784,1779145832000,-212.95636389,0.00014159,2]
[422604785,1779145832000,-152.82493512,0.00014247,21]
[422604790,1779145832000,-867.04431144,0.00014811,2]
[422604794,1779145832000,-1852.47131106,0.000149,2]
[422604837,1779145838000,-393.36708379,0.000149,2]
[422604835,1779145838000,-172.31,0.00012495,2]
[422604840,1779145838000,-23406.88023101,0.00015,2]
[422604839,1779145838000,-117.83243124,0.00015,2]
[422604838,1779145838000,-359.13684963,0.000149,2]
[422604836,1779145838000,-867.04431144,0.00014822,2]
[422604841,1779145839000,-12193005.09297542,0.00015,2]
[422604927,1779145841000,-867.04431144,0.00014833,2]
[422604928,1779145841000,-101037.87684191,0.00015,2]
[422604945,1779145846000,-1944.51206963,0.00015,2]
[422604944,1779145846000,-20392.11160486,0.00015,2]
[422604942,1779145846000,-1758.875417,0.00014925,2]
[422604943,1779145846000,-2113.35127846,0.00015,2]
[422604941,1779145846000,-867.04431144,0.00014844,2]
[422604952,1779145852000,500.0,0.00029999,120]
[422604955,1779145852000,500.0,0.00030129,120]
[422604954,1779145852000,500.0,0.00030129,120]
[422604953,1779145852000,500.0,0.00030129,120]
[422604956,1779145853000,391.68631386,0.00030129,120]
[422604957,1779145873000,152.0,9.979e-05,2]
[422604959,1779146494000,150.67,6.951e-05,2]
[422604963,1779146599000,154.9,0.00028403,120]
[422604964,1779146848000,160.94466339,0.0002522,120]
[422604965,1779146944000,1000.0,0.00030132,120]
[422604992,1779147032000,-1199.09,0.00013699,2]
[422604991,1779147032000,-300.0,0.00013698,2]
[422604990,1779147032000,-300.0,0.00013698,2]
[422604988,1779147032000,-166.01,0.00013688,2]
[422604993,1779147032000,-9999.99,0.00013699,2]
[422604994,1779147032000,-150.99,0.00013699,2]
[422604989,1779147032000,-1200.0,0.00013698,2]
[422604997,1779147032000,-1900.01,0.00013727,2]
[422604999,1779147032000,-163.01,0.00013789,2]
[422604996,1779147032000,-200.0,0.00013699,2]
[422604986,1779147032000,-150.67,0.00013629,2]
[422604998,1779147032000,-216.5,0.00013787,2]
[422605001,1779147032000,-150.0,0.00013987,2]
[422605002,1779147032000,-250.0,0.00014,2]
[422605003,1779147032000,-166.68,0.0001418,2]
[422605004,1779147032000,-400.0,0.000143,5]
[422604995,1779147032000,-166.68,0.00013699,2]
[422604987,1779147032000,-197.81098472,0.00013658,2]
[422604983,1779147032000,-150.0,0.00013594,2]
[422604985,1779147032000,-154.9,0.00013608,2]
[422605008,1779147032000,-215.11887611,0.00014341,2]
[422604969,1779147032000,-190.678914,0.00010533,2]
[422604968,1779147032000,-150.67,0.0001029,2]
[422604972,1779147032000,-150.0,0.00010811,2]
[422604971,1779147032000,-150.0,0.00010705,2]
[422604970,1779147032000,-59.321086,0.00010533,2]
[422604973,1779147032000,-173.87,0.00011262,2]
[422604984,1779147032000,-349.01126933,0.00013597,2]
[422604974,1779147032000,-250.0,0.00011319,2]
[422604976,1779147032000,-47.98733814,0.00011319,2]
[422604979,1779147032000,-592.22507885,0.00013539,2]
[422604980,1779147032000,-719.52552339,0.00013539,2]
[422604978,1779147032000,-1852.42,0.00013524,2]
[422604977,1779147032000,-150.0,0.00013488,2]
[422604981,1779147032000,-439.68939776,0.00013539,2]
[422604982,1779147032000,-887.06,0.00013574,2]
[422604975,1779147032000,-202.01266186,0.00011319,2]
[422605006,1779147032000,-150.0,0.00014327,2]
[422605000,1779147032000,-166.68,0.00013939,2]
[422605016,1779147032000,-150.0,0.00014487,2]
[422605057,1779147032000,-151.67627943,0.00014711,2]
[422605055,1779147032000,-500.0,0.00014711,2]
[422605053,1779147032000,-500.0,0.00014711,2]
[422605059,1779147032000,-500.0,0.00014711,2]
[422605061,1779147032000,-500.0,0.00014711,2]
[422605063,1779147032000,-500.0,0.00014711,2]
[422605065,1779147032000,-291.48088761,0.00014711,2]
[422605051,1779147032000,-500.0,0.00014711,2]
[422605067,1779147032000,-432.33741,0.00014773,2]
[422605069,1779147032000,-349.829133,0.00014773,2]
[422605081,1779147032000,-345.928849,0.00014847,2]
[422605075,1779147032000,-400.0,0.000148,5]
[422605071,1779147032000,-4168.5776,0.000148,2]
[422605082,1779147032000,-531.857698,0.00014847,2]
[422605073,1779147032000,-9738.682,0.000148,2]
[422605022,1779147032000,-166.68,0.00014662,2]
[422605079,1779147032000,-160.0,0.00014847,2]
[422605041,1779147032000,-500.0,0.00014711,2]
[422605077,1779147032000,-6802.7648,0.00014804,2]
[422605039,1779147032000,-500.0,0.00014711,2]
[422605047,1779147032000,-500.0,0.00014711,2]
[422605012,1779147032000,-800.0,0.000144,5]
[422605020,1779147032000,-1700.0,0.000146,5]
[422605014,1779147032000,-166.68,0.00014421,2]
[422605083,1779147032000,-160.0,0.00014847,2]
[422605010,1779147032000,-160.0,0.00014341,2]
[422605018,1779147032000,-1300.0,0.000145,5]
[422605027,1779147032000,-382.811662,0.000147,2]
[422605024,1779147032000,-2200.0,0.000147,5]
[422605026,1779147032000,-160.0,0.000147,2]
[422605032,1779147032000,-500.0,0.00014711,2]
[422605043,1779147032000,-500.0,0.00014711,2]
[422605049,1779147032000,-500.0,0.00014711,2]
[422605045,1779147032000,-500.0,0.00014711,2]
[422605034,1779147032000,-500.0,0.00014711,2]
[422605037,1779147032000,-500.0,0.00014711,2]
[422605030,1779147032000,-605.623324,0.000147,2]
[422605036,1779147032000,-500.0,0.00014711,2]
[422605129,1779147033000,-500.0,0.00014993,2]
[422605127,1779147033000,-342.61573045,0.0001499,2]
[422605128,1779147033000,-500.89427333,0.00014993,2]
[422605126,1779147033000,-342.61573045,0.0001499,2]
[422605124,1779147033000,-5237.01477432,0.00014986,2]
[422605119,1779147033000,-5237.01477432,0.00014963,2]
[422605117,1779147033000,-8466.0,0.00014959,2]
[422605120,1779147033000,-5237.01477432,0.00014975,2]
[422605116,1779147033000,-683.60782157,0.00014959,2]
[422605115,1779147033000,-5237.01477432,0.00014951,2]
[422605130,1779147033000,-185.59282774,0.00014993,2]
[422605114,1779147033000,-1136.44315777,0.00014941,2]
[422605118,1779147033000,-6013.0,0.00014959,2]
[422605133,1779147033000,-1521.52994848,0.00014993,2]
[422605149,1779147033000,-1521.52994848,0.00014993,2]
[422605132,1779147033000,-1521.52994848,0.00014993,2]
[422605131,1779147033000,-500.0,0.00014993,2]
[422605134,1779147033000,-500.0,0.00014993,2]
[422605136,1779147033000,-1521.52994848,0.00014993,2]
[422605135,1779147033000,-496.30445522,0.00014993,2]
[422605138,1779147033000,-184.51835122,0.00014993,2]
[422605148,1779147033000,-1521.52994848,0.00014993,2]
[422605137,1779147033000,-1521.52994848,0.00014993,2]
[422605146,1779147033000,-1521.52994848,0.00014993,2]
[422605147,1779147033000,-1521.52994848,0.00014993,2]
[422605140,1779147033000,-500.0,0.00014993,2]
[422605141,1779147033000,-1521.52994848,0.00014993,2]
[422605112,1779147033000,-683.60782157,0.00014939,2]
[422605125,1779147033000,-342.61573045,0.0001499,2]
[422605122,1779147033000,-634.24,0.00014985,2]
[422605094,1779147033000,-6701.7456,0.000149,2]
[422605121,1779147033000,-683.60782157,0.00014978,2]
[422605095,1779147033000,-32294.6413,0.000149,2]
[422605085,1779147033000,-495.353498,0.00014847,2]
[422605088,1779147033000,-5237.01477441,0.00014893,2]
[422605090,1779147033000,-1000.0,0.00014898,2]
[422605089,1779147033000,-2500.0,0.00014895,2]
[422605086,1779147033000,-338.9201,0.00014877,2]
[422605097,1779147033000,-556.39387255,0.000149,2]
[422605091,1779147033000,-1136.44315777,0.00014898,2]
[422605096,1779147033000,-2000.0,0.000149,2]
[422605087,1779147033000,-1136.44315781,0.00014893,2]
[422605084,1779147033000,-327.676749,0.00014847,2]
[422605093,1779147033000,-10000.0,0.000149,2]
[422605139,1779147033000,-1521.52994848,0.00014993,2]
[422605092,1779147033000,-1000.0,0.00014899,2]
[422605098,1779147033000,-5000.0,0.000149,2]
[422605102,1779147033000,-5237.01477432,0.00014905,2]
[422605101,1779147033000,-1136.44315777,0.00014904,2]
[422605109,1779147033000,-5237.01477432,0.00014928,2]
[422605100,1779147033000,-683.60782159,0.000149,2]
[422605099,1779147033000,-400.0,0.000149,5]
[422605110,1779147033000,-1136.44315777,0.0001493,2]
[422605107,1779147033000,-1136.44315777,0.0001492,2]
[422605111,1779147033000,-1136.44315777,0.00014936,2]
[422605105,1779147033000,-5237.01477432,0.00014916,2]
[422605106,1779147033000,-683.60782157,0.0001492,2]
[422605108,1779147033000,-1136.44315777,0.00014925,2]
[422605104,1779147033000,-1136.44315777,0.00014914,2]
[422605103,1779147033000,-1136.44315777,0.00014909,2]
[422605113,1779147033000,-5237.01477432,0.0001494,2]
[422605123,1779147033000,-150.0,0.00014986,2]
[422605142,1779147033000,-1521.52994848,0.00014993,2]
[422605150,1779147033000,-1521.52994848,0.00014993,2]
[422605143,1779147033000,-1521.52994848,0.00014993,2]
[422605187,1779147033000,-1521.52994848,0.00014993,2]
[422605188,1779147033000,-1521.52994848,0.00014993,2]
[422605182,1779147033000,-1521.52994848,0.00014993,2]
[422605186,1779147033000,-1521.52994848,0.00014993,2]
[422605183,1779147033000,-1521.52994848,0.00014993,2]
[422605185,1779147033000,-1521.52994848,0.00014993,2]
[422605184,1779147033000,-1521.52994848,0.00014993,2]
[422605190,1779147033000,-1521.52994848,0.00014993,2]
[422605191,1779147033000,-1521.52994848,0.00014993,2]
[422605192,1779147033000,-1521.52994848,0.00014993,2]
[422605194,1779147033000,-1521.52994848,0.00014993,2]
[422605193,1779147033000,-1521.52994848,0.00014993,2]
[422605198,1779147033000,-1521.52994848,0.00014993,2]
[422605196,1779147033000,-1521.52994848,0.00014993,2]
[422605199,1779147033000,-1521.52994848,0.00014993,2]
[422605195,1779147033000,-1521.52994848,0.00014993,2]
[422605197,1779147033000,-1521.52994848,0.00014993,2]
[422605200,1779147033000,-1521.52994848,0.00014993,2]
[422605202,1779147033000,-1521.52994848,0.00014993,2]
[422605201,1779147033000,-1521.52994848,0.00014993,2]
[422605144,1779147033000,-1521.52994848,0.00014993,2]
[422605204,1779147033000,-7972.36526995,0.00014993,2]
[422605209,1779147033000,-7972.36526995,0.00014993,2]
[422605210,1779147033000,-7972.36526995,0.00014993,2]
[422605211,1779147033000,-7972.36526995,0.00014993,2]
[422605205,1779147033000,-7972.36526995,0.00014993,2]
[422605206,1779147033000,-7972.36526995,0.00014993,2]
[422605207,1779147033000,-7972.36526995,0.00014993,2]
[422605208,1779147033000,-7972.36526995,0.00014993,2]
[422605181,1779147033000,-1521.52994848,0.00014993,2]
[422605180,1779147033000,-1521.52994848,0.00014993,2]
[422605203,1779147033000,-7972.36526995,0.00014993,2]
[422605178,1779147033000,-1521.52994848,0.00014993,2]
[422605189,1779147033000,-1521.52994848,0.00014993,2]
[422605145,1779147033000,-1521.52994848,0.00014993,2]
[422605151,1779147033000,-1521.52994848,0.00014993,2]
[422605156,1779147033000,-1521.52994848,0.00014993,2]
[422605155,1779147033000,-1521.52994848,0.00014993,2]
[422605153,1779147033000,-1521.52994848,0.00014993,2]
[422605154,1779147033000,-1521.52994848,0.00014993,2]